[Event "Argentine Youth-Junior-ch 2025"]
[Site "Mar del Plata"]
[Date "2025.04.16"]
[Round "3.1"]
[White "Lieby, Camilo Julian"]
[Black "Unhold, Valentin"]
[Result "0-1"]
[Annotator "RC"]
[ECO "C02"]
[WhiteElo "1969"]
[BlackElo "2149"]
[PlyCount "92"]
[EventDate "2025.04.14"]
[EventType "swiss"]
[EventCountry "ARG"]
[SourceTitle "playchess.com"]
[Source "ChessBase"]
[SourceQuality "1"]
[TimeControl "3600+30"]

1. e4 {[%emt 0:00:05]} e6 {[%emt 0:00:13]} 2. d4 {[%emt 0:01:22]} d5 {[%emt 0:00:09]} 3. e5 {[%emt 0:00:06]} c5 {[%emt 0:00:09]} 4. c3 {[%emt 0:00:04]} Qb6 {[%emt 0:00:10]} 5. Nf3 {[%emt 0:00:58]} Bd7 {[%emt 0:00:21]} 6. a3 {[%emt 0:01:13]} Bb5 {[%emt 0:00:50]} 7. b4 {[%emt 0:00:25]} cxd4 {[%emt 0:00:40]} 8. Bxb5+ {[%emt 0:01:14]} Qxb5 {[%emt 0:00:08]} 9. cxd4 {[%emt 0:01:38]} Nd7 {[%emt 0:00:16]} 10. Nc3 {[%emt 0:01:44]} Qc6 {[%emt 0:00:09]} 11. Bb2 {[%emt 0:06:04]} Nb6 {[%emt 0:01:14]} 12. O-O {[%emt 0:01:37]} Nh6 {[%emt 0:06:55]} 13. Rc1 {[%emt 0:09:44]} Nc4 {[%emt 0:04:01]} 14. b5 {[%emt 0:05:39]} Qd7 {[%emt 0:02:13]} 15. Qb3 {[%emt 0:00:48]} Be7 {[%emt 0:05:01]} 16. Rc2 {[%emt 0:03:02]} O-O {[%emt 0:06:20]} 17. Rfc1 {[%emt 0:04:21]} Nf5 {[%emt 0:03:02]} 18. Ne2 {[%emt 0:02:12]} a6 {[%emt 0:02:20]} 19. b6 {[%emt 0:10:10]} Qb5 {[%emt 0:01:24]} 20. Qxb5 {[%emt 0:04:14]} axb5 {[%emt 0:00:21]} 21. Ra1 {[%emt 0:02:43]} b4 {[%emt 0:04:41]} 22. axb4 {[%emt 0:04:50]} Nxb2 {[%emt 0:00:17]} 23. Rxa8 {[%emt 0:00:08]} Rxa8 {[%emt 0:00:07]} 24. g4 {[%emt 0:00:03]} Nxd4 {[%emt 0:09:57]} 25. Nexd4 {[%emt 0:01:33]} Nc4 {[%emt 0:00:17]} 26. b5 {[%emt 0:03:59]} Bc5 {[%emt 0:01:07]} 27. Nb3 {[%emt 0:00:01]} Bxb6 {[%emt 0:00:13]} 28. Nbd2 {[%emt 0:00:13]} Nxd2 {[%emt 0:02:51]} 29. Nxd2 {[%emt 0:00:07]} Kf8 {[%emt 0:02:49]} 30. Kg2 {[%emt 0:00:48]} Ke7 {[%emt 0:00:09]} 31. Nb3 {[%emt 0:01:41]} Kd7 {[%emt 0:00:44]} 32. Rc3 {[%emt 0:01:16]} Ra2 {[%emt 0:02:52]} 33. Rf3 {[%emt 0:00:40]} Ke7 {[%emt 0:00:08]} 34. h3 {[%emt 0:00:07]} Rb2 {[%emt 0:01:05]} 35. g5 {[%emt 0:00:12]} Bc7 {[%emt 0:02:39]} 36. Re3 {[%emt 0:02:48]} Bxe5 {[%emt 0:01:03]} 37. b6 {[%emt 0:00:39]} f6 {[%emt 0:02:31]} 38. gxf6+ {[%emt 0:00:20]} gxf6 {[%emt 0:00:09]} 39. Kf3 {[%emt 0:00:15]} Kd7 {[%emt 0:01:00]} 40. Nc5+ {[%emt 0:00:25]} Ke7 {[%emt 0:03:27]} 41. Nxb7 {[%emt 0:01:00]} Bd4 {[%emt 0:01:30]} 42. Rd3 {[%emt 0:00:30]} Bxb6 {[%emt 0:00:08]} 43. Kg4 {[%emt 0:00:18]} Rb5 {[%emt 0:02:22]} 44. f4 {[%emt 0:00:42]} Bc7 {[%emt 0:00:33]} 45. f5 {[%emt 0:00:25]} Rxb7 {[%emt 0:00:09]} 46. fxe6 {[%emt 0:00:05]} Kxe6 {[%emt 0:00:09]} 0-1

[Event "Argentine Youth-Junior-ch 2025"]
[Site "Mar del Plata"]
[Date "2025.04.16"]
[Round "3.2"]
[White "Scarsi, Anna Laura"]
[Black "Moro Saidon, Gonzalo"]
[Result "1-0"]
[Annotator "RC"]
[ECO "B51"]
[WhiteElo "2144"]
[BlackElo "2076"]
[PlyCount "65"]
[EventDate "2025.04.14"]
[EventType "swiss"]
[EventCountry "ARG"]
[SourceTitle "playchess.com"]
[Source "ChessBase"]
[SourceQuality "1"]
[TimeControl "3600+30"]

1. e4 {[%emt 0:00:02]} c5 {[%emt 0:00:07]} 2. Nf3 {[%emt 0:00:04]} d6 {[%emt 0:00:05]} 3. Bb5+ {[%emt 0:00:03]} Nd7 {[%emt 0:00:51]} 4. c3 {[%emt 0:00:05]} Ngf6 {[%emt 0:01:46]} 5. Bd3 {[%emt 0:00:05]} a6 {[%emt 0:03:11]} 6. Bc2 {[%emt 0:02:32]} c4 {[%emt 0:05:21]} 7. a4 {[%emt 0:06:50]} e6 {[%emt 0:03:39]} 8. Qe2 {[%emt 0:01:05]} Qc7 {[%emt 0:00:49]} 9. Na3 {[%emt 0:01:37]} d5 {[%emt 0:02:48]} 10. exd5 {[%emt 0:01:43]} Bxa3 {[%emt 0:00:07]} 11. dxe6 {[%emt 0:04:23]} Be7 {[%emt 0:00:13]} 12. exd7+ {[%emt 0:00:33]} Bxd7 {[%emt 0:01:39]} 13. O-O {[%emt 0:01:22]} Ng4 {[%emt 0:12:57]} 14. h3 {[%emt 0:06:43]} h5 {[%emt 0:02:24]} 15. b3 {[%emt 0:21:58]} Be6 {[%emt 0:02:33]} 16. bxc4 {[%emt 0:05:41]} Bxc4 {[%emt 0:00:42]} 17. Bd3 {[%emt 0:00:06]} Be6 {[%emt 0:01:47]} 18. Re1 {[%emt 0:05:09]} Bc5 {[%emt 0:02:20]} 19. Rf1 {[%emt 0:02:16]} O-O-O {[%emt 0:00:40]} 20. Be4 {[%emt 0:00:45]} Rh6 {[%emt 0:01:57]} 21. d4 {[%emt 0:00:33]} Rf6 {[%emt 0:00:01]} 22. hxg4 {[%emt 0:00:27]} hxg4 {[%emt 0:00:11]} 23. Ne5 {[%emt 0:00:12]} g3 {[%emt 0:04:01]} 24. dxc5 {[%emt 0:03:43]} Rh8 {[%emt 0:00:01]} 25. Bg5 {[%emt 0:01:43]} gxf2+ {[%emt 0:02:27]} 26. Rxf2 {[%emt 0:00:10]} Rxf2 {[%emt 0:00:10]} 27. Kxf2 {[%emt 0:00:27]} Qxc5+ {[%emt 0:00:01]} 28. Qe3 {[%emt 0:00:12]} Qd6 {[%emt 0:01:06]} 29. Nd3 {[%emt 0:00:59]} Rh5 {[%emt 0:01:07]} 30. Bf3 {[%emt 0:02:01]} Rxg5 {[%emt 0:00:07]} 31. Qxg5 {[%emt 0:00:07]} Qxd3 {[%emt 0:00:04]} 32. Qe3 {[%emt 0:00:25]} Qc2+ {[%emt 0:00:08]} 33. Kg1 {[%emt 0:00:40]} 1-0

[Event "Argentine Youth-Junior-ch 2025"]
[Site "Mar del Plata"]
[Date "2025.04.16"]
[Round "3.3"]
[White "Deichmann, Esteban Horacio"]
[Black "Salomon Ferreyra, Jose Bautista"]
[Result "1-0"]
[Annotator "NA RC"]
[ECO "C28"]
[WhiteElo "2028"]
[BlackElo "1830"]
[PlyCount "87"]
[EventDate "2025.04.14"]
[EventType "swiss"]
[EventCountry "ARG"]
[SourceTitle "playchess.com"]
[Source "ChessBase"]
[SourceQuality "1"]
[TimeControl "3600+30"]

1. e4 {[%emt 0:00:06]} e5 {[%emt 0:00:23]} 2. Nc3 {[%emt 0:00:04]} Nf6 {[%emt 0:00:05]} 3. Bc4 {[%emt 0:00:04]} Nc6 {[%emt 0:03:02]} 4. d3 {[%emt 0:00:46]} h6 {[%emt 0:01:48]} 5. Nge2 {[%emt 0:01:14]} Bc5 {[%emt 0:04:00]} 6. h3 {[%emt 0:00:06]} d6 {[%emt 0:01:04]} 7. Na4 {[%emt 0:01:11]} Qe7 {[%emt 0:00:46]} 8. c3 {[%emt 0:01:29]} a6 {[%emt 0:03:44]} 9. Nxc5 {[%emt 0:02:34]} dxc5 {[%emt 0:01:06]} 10. Ng3 {[%emt 0:00:15]} b5 {[%emt 0:02:23]} 11. Bd5 {[%emt 0:00:43]} Qd6 {[%emt 0:06:33]} 12. c4 {[%emt 0:03:07]} Nxd5 {[%emt 0:01:56]} 13. cxd5 {[%emt 0:00:11]} Nd4 {[%emt 0:00:25]} 14. O-O {[%emt 0:00:52]} g5 {[%emt 0:01:18]} 15. Be3 {[%emt 0:01:10]} Bd7 {[%emt 0:05:29]} 16. Nh5 {[%emt 0:06:33]} O-O-O {[%emt 0:02:35]} 17. Bxd4 {[%emt 0:03:25]} exd4 {[%emt 0:01:08]} 18. g4 {[%emt 0:00:18]} Rhg8 {[%emt 0:05:37]} 19. Qf3 {[%emt 0:00:25]} f5 {[%emt 0:01:16]} 20. gxf5 {[%emt 0:08:06]} g4 {[%emt 0:02:36]} 21. hxg4 {[%emt 0:03:16]} Be8 {[%emt 0:01:34]} 22. Kh1 {[%emt 0:01:17]} Rg5 {[%emt 0:05:26]} 23. Rg1 {[%emt 0:03:32]} Bf7 {[%emt 0:05:35]} 24. Rg3 {[%emt 0:05:29]} c6 {[%emt 0:01:47]} 25. Re1 {[%emt 0:01:07]} Re8 {[%emt 0:01:59]} 26. dxc6 {[%emt 0:01:38]} Qxc6 {[%emt 0:00:27]} 27. Nf4 {[%emt 0:00:42]} c4 {[%emt 0:00:51]} 28. Rc1 {[%emt 0:01:51]} c3 {[%emt 0:01:40]} 29. Ne2 {[%emt 0:00:53]} h5 {[%emt 0:05:28]} 30. Nxd4 {[%emt 0:00:47]} Qh6 {[%emt 0:01:37]} 31. Rxc3+ {[%emt 0:00:21]} Bc4 {[%emt 0:00:50]} 32. Qg2 {[%emt 0:01:48]} hxg4+ {[%emt 0:00:26]} 33. Kg1 {[%emt 0:00:04]} Rh8 {[%emt 0:00:33]} 34. dxc4 {[%emt 0:02:17]} Rh5 {[%emt 0:01:04]} 35. cxb5+ {[%emt 0:01:13]} Kd7 {[%emt 0:00:23]} 36. Rh3 {[%emt 0:01:44]} gxh3 {[%emt 0:00:32]} 37. Qh2 {[%emt 0:00:31]} Rg5+ {[%emt 0:00:48]} 38. Kh1 {[%emt 0:00:06]} Rc8 {[%emt 0:00:33]} 39. Rxc8 {[%emt 0:01:11]} Kxc8 {[%emt 0:00:07]} 40. Ne6 {[%emt 0:00:17]} Rg7 {[%emt 0:01:00]} 41. Nxg7 {[%emt 0:00:05]} Qc1+ {[%emt 0:00:14]} 42. Qg1 {[%emt 0:00:11]} Qf4 {[%emt 0:00:05]} 43. Ne6 {[%emt 0:00:44]} Qxe4+ {[%emt 0:01:03]} 44. Kh2 {[%emt 0:00:04]} 1-0

[Event "Argentine Youth-Junior-ch 2025"]
[Site "Mar del Plata"]
[Date "2025.04.16"]
[Round "3.4"]
[White "Baez, Santino"]
[Black "Fuentes, Agustin"]
[Result "0-1"]
[Annotator "NA RC"]
[ECO "C64"]
[WhiteElo "1763"]
[BlackElo "2006"]
[PlyCount "80"]
[EventDate "2025.04.14"]
[EventType "swiss"]
[EventCountry "ARG"]
[SourceTitle "playchess.com"]
[Source "ChessBase"]
[SourceQuality "1"]
[TimeControl "3600+30"]

1. e4 {[%emt 0:00:02]} e5 {[%emt 0:00:03]} 2. Nf3 {[%emt 0:00:19]} Nc6 {[%emt 0:00:06]} 3. Bb5 {[%emt 0:00:08]} a6 {[%emt 0:00:04]} 4. Ba4 {[%emt 0:00:03]} Bc5 {[%emt 0:00:34]} 5. O-O {[%emt 0:00:15]} Nge7 {[%emt 0:00:09]} 6. c3 {[%emt 0:00:31]} Ba7 {[%emt 0:00:19]} 7. d4 {[%emt 0:00:54]} Ng6 {[%emt 0:00:09]} 8. Bg5 {[%emt 0:04:55]} f6 {[%emt 0:00:18]} 9. Be3 {[%emt 0:00:15]} O-O {[%emt 0:00:31]} 10. Nbd2 {[%emt 0:04:46]} exd4 {[%emt 0:03:54]} 11. Nxd4 {[%emt 0:02:23]} Nxd4 {[%emt 0:07:12]} 12. cxd4 {[%emt 0:01:07]} Kh8 {[%emt 0:01:01]} 13. Qh5 {[%emt 0:04:01]} d5 {[%emt 0:03:11]} 14. exd5 {[%emt 0:03:58]} Ne7 {[%emt 0:08:57]} 15. Bb3 {[%emt 0:09:07]} Nf5 {[%emt 0:05:07]} 16. Rae1 {[%emt 0:05:53]} g6 {[%emt 0:07:18]} 17. Qf3 {[%emt 0:01:58]} Bxd4 {[%emt 0:07:05]} 18. g4 {[%emt 0:03:49]} Nxe3 {[%emt 0:02:09]} 19. fxe3 {[%emt 0:00:14]} Bxb2 {[%emt 0:00:39]} 20. Nc4 {[%emt 0:06:15]} Bc3 {[%emt 0:01:26]} 21. Rc1 {[%emt 0:00:03]} Bb4 {[%emt 0:00:09]} 22. Bc2 {[%emt 0:05:56]} Qe7 {[%emt 0:06:13]} 23. Qh3 {[%emt 0:02:45]} Kg7 {[%emt 0:01:03]} 24. Bd3 {[%emt 0:04:51]} b5 {[%emt 0:01:26]} 25. Nb2 {[%emt 0:02:05]} Bd2 {[%emt 0:00:28]} 26. Rc6 {[%emt 0:01:11]} Qxe3+ {[%emt 0:01:55]} 27. Kg2 {[%emt 0:00:23]} Qxh3+ {[%emt 0:02:05]} 28. Kxh3 {[%emt 0:00:02]} Rf7 {[%emt 0:00:02]} 29. Rf2 {[%emt 0:00:53]} Bg5 {[%emt 0:02:07]} 30. Kg3 {[%emt 0:02:08]} Bb7 {[%emt 0:00:37]} 31. Rc3 {[%emt 0:00:12]} Bxd5 {[%emt 0:00:45]} 32. Rfc2 {[%emt 0:00:27]} c6 {[%emt 0:01:32]} 33. h4 {[%emt 0:00:28]} b4 {[%emt 0:03:53]} 34. Rxc6 {[%emt 0:01:12]} Bxc6 {[%emt 0:00:09]} 35. hxg5 {[%emt 0:00:06]} Bd5 {[%emt 0:00:54]} 36. gxf6+ {[%emt 0:00:14]} Rxf6 {[%emt 0:00:04]} 37. Be2 {[%emt 0:01:43]} Bxa2 {[%emt 0:00:51]} 38. Rc7+ {[%emt 0:00:27]} Rf7 {[%emt 0:00:16]} 39. Rc6 {[%emt 0:00:07]} a5 {[%emt 0:00:28]} 40. Bf3 {[%emt 0:00:29]} Rxf3+ {[%emt 0:00:08]} 0-1

[Event "Argentine Youth-Junior-ch 2025"]
[Site "Mar del Plata"]
[Date "2025.04.16"]
[Round "3.5"]
[White "Cardona Martinez, Lina Sofia"]
[Black "Gaite, Karen Nerina"]
[Result "0-1"]
[Annotator "NA RC"]
[ECO "C54"]
[WhiteElo "1914"]
[BlackElo "2031"]
[PlyCount "60"]
[EventDate "2025.04.14"]
[EventType "swiss"]
[EventCountry "ARG"]
[SourceTitle "playchess.com"]
[Source "ChessBase"]
[SourceQuality "1"]
[TimeControl "3600+30"]

1. e4 {[%emt 0:00:03]} e5 {[%emt 0:00:04]} 2. Nf3 {[%emt 0:00:07]} Nc6 {[%emt 0:00:07]} 3. Bc4 {[%emt 0:00:06]} Bc5 {[%emt 0:00:06]} 4. c3 {[%emt 0:00:14]} Nf6 {[%emt 0:00:08]} 5. d3 {[%emt 0:00:03]} a5 {[%emt 0:00:11]} 6. O-O {[%emt 0:07:24]} d6 {[%emt 0:00:20]} 7. h3 {[%emt 0:00:05]} O-O {[%emt 0:03:24]} 8. d4 {[%emt 0:05:02]} Bb6 {[%emt 0:01:51]} 9. Re1 {[%emt 0:00:15]} h6 {[%emt 0:03:31]} 10. b3 {[%emt 0:06:16]} Re8 {[%emt 0:02:39]} 11. Qd3 {[%emt 0:03:20]} exd4 {[%emt 0:01:41]} 12. cxd4 {[%emt 0:00:10]} Nb4 {[%emt 0:00:32]} 13. Qd2 {[%emt 0:02:42]} Nxe4 {[%emt 0:01:32]} 14. Qb2 {[%emt 0:07:47]} d5 {[%emt 0:01:51]} 15. Bb5 {[%emt 0:00:41]} c6 {[%emt 0:00:15]} 16. Bf1 {[%emt 0:34:15]} Qf6 {[%emt 0:50:18]} 17. a3 {[%emt 0:00:00]} Na6 {[%emt 0:00:00]} 18. Be3 {[%emt 0:00:00]} Nac5 {[%emt 0:00:00]} 19. Qc2 {[%emt 0:00:00]} Ne6 {[%emt 0:00:00]} 20. Re2 {[%emt 0:00:00]} Nxd4 {[%emt 0:00:00]} 21. Bxd4 {[%emt 0:00:00]} Bxd4 {[%emt 0:00:00]} 22. Nxd4 {[%emt 0:00:00]} Qxd4 {[%emt 0:00:00]} 23. Nc3 {[%emt 0:00:00]} Bf5 {[%emt 0:00:00]} 24. Rd1 {[%emt 0:00:00]} Qxc3 {[%emt 0:00:00]} 25. Qxc3 {[%emt 0:00:00]} Nxc3 {[%emt 0:00:00]} 26. Rxe8+ {[%emt 0:00:00]} Rxe8 {[%emt 0:00:00]} 27. Rc1 {[%emt 0:00:00]} d4 {[%emt 0:00:00]} 28. g4 {[%emt 0:00:00]} Be6 {[%emt 0:00:00]} 29. Bc4 {[%emt 0:00:00]} Bxc4 {[%emt 0:00:00]} 30. bxc4 {[%emt 0:00:00]} Ne2+ {[%emt 0:00:00]} 0-1

[Event "Argentine Youth-Junior-ch 2025"]
[Site "Mar del Plata"]
[Date "2025.04.16"]
[Round "3.6"]
[White "Rojas, Agostina"]
[Black "Portillo, Luciana"]
[Result "0-1"]
[Annotator "NA RC"]
[ECO "D73"]
[WhiteElo "1703"]
[BlackElo "1667"]
[PlyCount "52"]
[EventDate "2025.04.14"]
[EventType "swiss"]
[EventCountry "ARG"]
[SourceTitle "playchess.com"]
[Source "ChessBase"]
[SourceQuality "1"]
[TimeControl "3600+30"]

1. d4 {[%emt 0:00:45]} d5 {[%emt 0:00:05]} 2. Nf3 {[%emt 0:00:10]} Nf6 {[%emt 0:00:15]} 3. g3 {[%emt 0:00:07]} g6 {[%emt 0:00:14]} 4. Bg2 {[%emt 0:00:47]} Bg7 {[%emt 0:01:02]} 5. c4 {[%emt 0:00:31]} c6 {[%emt 0:01:10]} 6. O-O {[%emt 0:01:43]} dxc4 {[%emt 0:00:21]} 7. Ne5 {[%emt 0:03:39]} Be6 {[%emt 0:01:12]} 8. Nd2 {[%emt 0:05:02]} Qxd4 {[%emt 0:02:06]} 9. Ndf3 {[%emt 0:01:36]} Qxd1 {[%emt 0:01:13]} 10. Rxd1 {[%emt 0:00:28]} Bd5 {[%emt 0:01:21]} 11. a4 {[%emt 0:12:01]} Nbd7 {[%emt 0:00:58]} 12. Nxd7 {[%emt 0:03:02]} Nxd7 {[%emt 0:00:19]} 13. Bh3 {[%emt 0:01:37]} Nc5 {[%emt 0:00:57]} 14. Be3 {[%emt 0:05:12]} Nb3 {[%emt 0:00:19]} 15. Rab1 {[%emt 0:01:42]} O-O {[%emt 0:00:40]} 16. Nd4 {[%emt 0:02:21]} Be4 {[%emt 0:01:20]} 17. Nxb3 {[%emt 0:00:49]} Bxb1 {[%emt 0:00:16]} 18. Nc5 {[%emt 0:00:36]} Bc2 {[%emt 0:01:31]} 19. Rc1 {[%emt 0:00:41]} Bb3 {[%emt 0:00:07]} 20. Nxb7 {[%emt 0:01:21]} Bxb2 {[%emt 0:00:28]} 21. Rb1 {[%emt 0:00:13]} c3 {[%emt 0:00:29]} 22. Bd4 {[%emt 0:02:59]} c2 {[%emt 0:00:35]} 23. Bxa7 {[%emt 0:01:26]} cxb1=Q+ {[%emt 0:00:33]} 24. Kg2 {[%emt 0:00:05]} Bd5+ {[%emt 0:00:28]} 25. e4 {[%emt 0:00:14]} Qxe4+ {[%emt 0:00:19]} 26. Kg1 {[%emt 0:00:04]} Qh1# {[%emt 0:55:12]} 0-1

[Event "Argentine Youth-Junior-ch 2025"]
[Site "Mar del Plata"]
[Date "2025.04.16"]
[Round "3.7"]
[White "Bazan Romero, Octavio Aaron"]
[Black "Varela, Agustin"]
[Result "1-0"]
[Annotator "RC"]
[ECO "B12"]
[WhiteElo "2292"]
[BlackElo "1835"]
[PlyCount "65"]
[EventDate "2025.04.14"]
[EventType "swiss"]
[EventCountry "ARG"]
[SourceTitle "playchess.com"]
[Source "ChessBase"]
[SourceQuality "1"]
[TimeControl "3600+30"]

1. e4 {[%emt 0:00:39]} c6 {[%emt 0:00:05]} 2. d4 {[%emt 0:01:09]} d5 {[%emt 0:00:05]} 3. e5 {[%emt 0:00:07]} Bf5 {[%emt 0:00:05]} 4. h4 {[%emt 0:00:04]} h5 {[%emt 0:00:05]} 5. Bd3 {[%emt 0:00:04]} Bxd3 {[%emt 0:00:06]} 6. Qxd3 {[%emt 0:00:25]} e6 {[%emt 0:00:06]} 7. Nf3 {[%emt 0:00:08]} Qa5+ {[%emt 0:00:45]} 8. Nbd2 {[%emt 0:00:12]} Nh6 {[%emt 0:00:18]} 9. O-O {[%emt 0:00:14]} Qa6 {[%emt 0:00:53]} 10. c4 {[%emt 0:00:20]} Nf5 {[%emt 0:00:55]} 11. b3 {[%emt 0:02:55]} Bb4 {[%emt 0:02:04]} 12. a4 {[%emt 0:11:15]} c5 {[%emt 0:11:43]} 13. dxc5 {[%emt 0:12:08]} Bxc5 {[%emt 0:02:50]} 14. Qb1 {[%emt 0:00:47]} dxc4 {[%emt 0:04:11]} 15. b4 {[%emt 0:01:16]} Be7 {[%emt 0:01:49]} 16. b5 {[%emt 0:00:16]} Qa5 {[%emt 0:08:09]} 17. Nxc4 {[%emt 0:00:50]} Qc3 {[%emt 0:03:19]} 18. Qa2 {[%emt 0:09:55]} O-O {[%emt 0:04:44]} 19. Rd1 {[%emt 0:06:56]} Rd8 {[%emt 0:11:19]} 20. Ba3 {[%emt 0:08:25]} Nd7 {[%emt 0:09:29]} 21. Rac1 {[%emt 0:00:44]} Nxe5 {[%emt 0:00:02]} 22. Rxd8+ {[%emt 0:03:38]} Rxd8 {[%emt 0:00:04]} 23. Nfxe5 {[%emt 0:00:21]} Qd4 {[%emt 0:00:51]} 24. Bxe7 {[%emt 0:00:30]} Nxe7 {[%emt 0:00:02]} 25. Nf3 {[%emt 0:01:05]} Qf4 {[%emt 0:00:23]} 26. Ne3 {[%emt 0:01:39]} e5 {[%emt 0:05:31]} 27. Qc4 {[%emt 0:04:26]} Rc8 {[%emt 0:01:14]} 28. Qf1 {[%emt 0:00:39]} Qxa4 {[%emt 0:02:38]} 29. Rxc8+ {[%emt 0:00:17]} Nxc8 {[%emt 0:00:01]} 30. Qd3 {[%emt 0:01:06]} Qa5 {[%emt 0:01:09]} 31. Ng5 {[%emt 0:00:40]} Qa1+ {[%emt 0:00:34]} 32. Kh2 {[%emt 0:00:17]} Qd4 {[%emt 0:00:10]} 33. Qh7+ {[%emt 0:00:05]} 1-0

[Event "Argentine Youth-Junior-ch 2025"]
[Site "Mar del Plata"]
[Date "2025.04.16"]
[Round "3.8"]
[White "Rojas, Lautaro"]
[Black "Hilt, Juan Ignacio"]
[Result "1/2-1/2"]
[Annotator "NA RC"]
[ECO "C56"]
[WhiteElo "1865"]
[BlackElo "2035"]
[PlyCount "44"]
[EventDate "2025.04.14"]
[EventType "swiss"]
[EventCountry "ARG"]
[SourceTitle "playchess.com"]
[Source "ChessBase"]
[SourceQuality "1"]
[TimeControl "3600+30"]

1. e4 {[%emt 0:00:11]} e5 {[%emt 0:00:08]} 2. Nf3 {[%emt 0:00:30]} Nc6 {[%emt 0:00:30]} 3. d4 {[%emt 0:00:30]} exd4 {[%emt 0:00:30]} 4. Bc4 {[%emt 0:00:30]} Nf6 {[%emt 0:00:30]} 5. e5 {[%emt 0:00:30]} d5 {[%emt 0:00:30]} 6. Bb5 {[%emt 0:00:30]} Ne4 {[%emt 0:00:30]} 7. Nxd4 {[%emt 0:00:30]} Bd7 {[%emt 0:00:30]} 8. Bxc6 {[%emt 0:00:30]} bxc6 {[%emt 0:03:02]} 9. O-O {[%emt 0:01:44]} Bc5 {[%emt 0:03:45]} 10. Be3 {[%emt 0:02:23]} O-O {[%emt 0:03:47]} 11. f3 {[%emt 0:00:33]} Ng5 {[%emt 0:01:04]} 12. f4 {[%emt 0:01:01]} Ne4 {[%emt 0:00:30]} 13. Nd2 {[%emt 0:00:30]} Nxd2 {[%emt 0:00:30]} 14. Qxd2 {[%emt 0:00:30]} f6 {[%emt 0:00:30]} 15. Nb3 {[%emt 0:00:30]} Bb6 {[%emt 0:00:30]} 16. Nc5 {[%emt 0:00:30]} Bf5 {[%emt 0:00:30]} 17. Rae1 {[%emt 0:00:30]} fxe5 {[%emt 0:00:30]} 18. fxe5 {[%emt 0:00:30]} Qe7 {[%emt 0:00:30]} 19. Qc3 {[%emt 0:00:30]} a5 {[%emt 0:00:30]} 20. a4 {[%emt 0:00:30]} Be6 {[%emt 0:00:30]} 21. Bd4 {[%emt 0:00:30]} Rae8 {[%emt 0:00:30]} 22. b3 {[%emt 0:00:30]} Ra8 {[%emt 0:51:44]} 1/2-1/2

[Event "Argentine Youth-Junior-ch 2025"]
[Site "Mar del Plata"]
[Date "2025.04.16"]
[Round "3.9"]
[White "Alvarez, Mia Morena"]
[Black "Fernandez Lazarte, Keyla Magali"]
[Result "1-0"]
[Annotator "NA RC"]
[ECO "B01"]
[WhiteElo "1819"]
[BlackElo "1591"]
[PlyCount "77"]
[EventDate "2025.04.14"]
[EventType "swiss"]
[EventCountry "ARG"]
[SourceTitle "playchess.com"]
[Source "ChessBase"]
[SourceQuality "1"]
[TimeControl "3600+30"]

1. e4 {[%emt 1:01:00]} d5 {[%emt 0:00:10]} 2. exd5 {[%emt 0:00:00]} Qxd5 {[%emt 0:00:12]} 3. Nc3 {[%emt 0:00:00]} Qd6 {[%emt 0:00:20]} 4. g3 {[%emt 0:00:00]} a6 {[%emt 0:00:42]} 5. Bg2 {[%emt 0:00:00]} Nf6 {[%emt 0:01:21]} 6. d3 {[%emt 0:00:00]} e6 {[%emt 0:02:19]} 7. Nf3 {[%emt 0:00:00]} b5 {[%emt 0:02:27]} 8. Bf4 {[%emt 0:00:00]} Qb6 {[%emt 0:00:49]} 9. Be3 {[%emt 0:00:00]} Qc6 {[%emt 0:01:04]} 10. Nh4 {[%emt 0:00:00]} Nd5 {[%emt 0:01:13]} 11. Qe2 {[%emt 0:00:00]} Be7 {[%emt 0:03:36]} 12. Nf5 {[%emt 0:00:00]} exf5 {[%emt 0:04:15]} 13. Bxd5 {[%emt 0:00:00]} Qd6 {[%emt 0:01:56]} 14. Bxa8 {[%emt 0:00:00]} Nc6 {[%emt 0:00:24]} 15. Bf4 {[%emt 0:00:00]} Qd8 {[%emt 0:02:01]} 16. Bxc6+ {[%emt 0:00:00]} Bd7 {[%emt 0:01:39]} 17. Bxd7+ {[%emt 0:00:00]} Qxd7 {[%emt 0:00:09]} 18. O-O-O {[%emt 0:00:00]} O-O {[%emt 0:01:04]} 19. h4 {[%emt 0:00:00]} h6 {[%emt 0:00:26]} 20. Qf3 {[%emt 0:00:00]} b4 {[%emt 0:01:15]} 21. Nd5 {[%emt 0:00:00]} Bd6 {[%emt 0:00:45]} 22. Bxd6 {[%emt 0:00:00]} Qxd6 {[%emt 0:02:36]} 23. Qxf5 {[%emt 0:00:00]} g6 {[%emt 0:00:58]} 24. Qf3 {[%emt 0:00:00]} a5 {[%emt 0:00:55]} 25. h5 {[%emt 0:00:00]} c6 {[%emt 0:00:41]} 26. Ne3 {[%emt 0:00:00]} a4 {[%emt 0:00:50]} 27. Qf4 {[%emt 0:00:00]} Qc5 {[%emt 0:00:41]} 28. hxg6 {[%emt 0:00:00]} fxg6 {[%emt 0:00:02]} 29. Qc4+ {[%emt 0:00:00]} Qxc4 {[%emt 0:01:04]} 30. Nxc4 {[%emt 0:00:00]} Rxf2 {[%emt 0:00:12]} 31. Rxh6 {[%emt 0:00:00]} Kg7 {[%emt 0:00:29]} 32. Rh4 {[%emt 0:00:00]} g5 {[%emt 0:00:36]} 33. Re4 {[%emt 0:00:00]} Rf3 {[%emt 0:00:42]} 34. g4 {[%emt 0:00:00]} Rg3 {[%emt 0:00:17]} 35. Nd6 {[%emt 0:00:00]} Kf6 {[%emt 0:00:59]} 36. Rxb4 {[%emt 0:00:00]} Ke6 {[%emt 0:00:19]} 37. Nf5 {[%emt 0:00:00]} Rf3 {[%emt 0:02:10]} 38. Re1+ {[%emt 0:00:00]} Kf6 {[%emt 0:00:55]} 39. Rc4 {[%emt 0:00:00]} 1-0